fUSD/lending_fUSD_20251128
["ID","MTS","AMOUNT","RATE_DAILY","PERIOD"]
[395022790,1764343846954,-381.92029994,0.0001699,2]
[395022791,1764343846973,-118.07970006,0.0001699,2]
[395022792,1764343846982,-209.19446924,0.0001699,2]
[395022793,1764343846995,-290.80553076,0.0001699,2]
[395022794,1764343847004,-250.0,0.0001699,2]
[395022795,1764343847013,-309.30503879,0.0001699,2]
[395022796,1764344208241,758.21,0.00013699,2]
[395022800,1764345006444,-166.66,0.00014921,2]
[395022801,1764345006469,-14.22925023,0.00014921,2]
[395022802,1764345032436,-197.77074977,0.00014921,2]
[395022803,1764345032447,-166.48591512,0.00015188,2]
[395022804,1764345032457,-166.66,0.00015235,2]
[395022811,1764345032467,-300.0,0.00015287,2]
[395022812,1764345032904,-1200.0,0.00015287,2]
[395022813,1764345032914,-300.0,0.00015287,2]
[395022814,1764345032923,-150.0,0.00015288,2]
[395022815,1764345032933,-150.0,0.00015288,2]
[395022816,1764345032942,-150.0,0.00015288,2]
[395022817,1764345032952,-150.0,0.00015288,2]
[395022818,1764345032961,-150.0,0.00015288,2]
[395022819,1764345032971,-150.0,0.00015288,2]
[395022820,1764345032981,-150.0,0.00015288,2]
[395022821,1764345032991,-156.90510009,0.00015288,2]
[395022822,1764345033000,-155.8140463,0.00015288,2]
[395022823,1764345033010,-150.0,0.00015288,2]
[395022824,1764345033019,-400.88641485,0.00015483,2]
[395022825,1764345033036,-1599.11358515,0.00015483,2]
[395022826,1764345033046,-166.66,0.00015549,2]
[395022827,1764345033056,-166.66,0.00015863,2]
[395022828,1764345033066,-250.0,0.00015916,2]
[395022829,1764345033076,-150.0,0.00015977,2]
[395022830,1764345033086,-1118.03,0.00015979,2]
[395022831,1764345033097,-151.0,0.00015995,2]
[395022832,1764345033106,-150.8,0.00015996,2]
[395022833,1764345033116,-299.0,0.00015996,2]
[395022834,1764345033126,-999.0,0.00015999,3]
[395022835,1764345033135,-4900.39,0.00016005,2]
[395022836,1764345033145,-621.76906048,0.00016007,2]
[395022837,1764345033156,-200.0,0.00016041,2]
[395022838,1764345033165,-150.0,0.00016137,2]
[395022839,1764345033175,-151.0,0.00016147,2]
[395022840,1764345033185,-300.0,0.00016147,2]
[395022841,1764345033195,-267.46074303,0.00016147,2]
[395022842,1764345033205,-166.66,0.00016177,2]
[395022843,1764345033215,-621.76906048,0.00016199,2]
[395022844,1764345033224,-300.0,0.00016252,2]
[395022845,1764345033234,-621.76906048,0.0001639,2]
[395022846,1764345033244,-250.0,0.00016413,2]
[395022847,1764345033254,-250.0,0.00016413,2]
[395022848,1764345033264,-168.0,0.0001648,2]
[395022849,1764345033274,-166.66,0.00016492,2]
[395022850,1764345033284,-151.0,0.00016543,2]
[395022851,1764345033294,-621.76906048,0.00016582,2]
[395022852,1764345033304,-151.0,0.00016695,2]
[395022853,1764345033315,-166.48591512,0.0001672,2]
[395022854,1764345033328,-420.0,0.00016726,2]
[395022855,1764345033337,-287.0,0.00016726,2]
[395022856,1764345033347,-621.76906048,0.00016773,2]
[395022857,1764345033362,-4818.97798533,0.0001679,2]
[395022858,1764345033372,-1031.39703629,0.0001679,2]
[395022859,1764345033381,-201.93286099,0.0001681,2]
[395022860,1764345033392,-160.0,0.0001681,2]
[395022861,1764345033402,-151.0,0.0001681,2]
[395022862,1764345033412,-151.0,0.0001681,2]
[395022863,1764345033422,-500.0,0.0001681,2]
[395022864,1764345033431,-500.0,0.0001681,2]
[395022865,1764345033444,-500.0,0.0001681,2]
[395022866,1764345033455,-500.0,0.0001681,2]
[395022867,1764345033464,-500.0,0.0001681,2]
[395022868,1764345033474,-500.0,0.0001681,2]
[395022869,1764345033484,-553.64373807,0.0001681,2]
[395022870,1764345033493,-151.0,0.0001681,2]
[395022871,1764345033503,-500.0,0.0001681,2]
[395022872,1764345033513,-500.0,0.0001681,2]
[395022873,1764345033523,-500.0,0.0001681,2]
[395022874,1764345033535,-500.0,0.0001681,2]
[395022875,1764345033545,-500.0,0.0001681,2]
[395022876,1764345033556,-500.0,0.0001681,2]
[395022877,1764345033566,-500.0,0.0001681,2]
[395022878,1764345033576,-500.0,0.0001681,2]
[395022879,1764345033586,-500.0,0.0001681,2]
[395022880,1764345033596,-200.0,0.0001681,2]
[395022881,1764345033607,-500.0,0.0001681,2]
[395022882,1764345033617,-500.0,0.0001681,2]
[395022883,1764345033627,-500.0,0.0001681,2]
[395022884,1764345033636,-500.0,0.0001681,2]
[395022885,1764345033645,-500.0,0.0001681,2]
[395022886,1764345033655,-500.0,0.0001681,2]
[395022887,1764345033665,-500.0,0.0001681,2]
[395022888,1764345033674,-500.0,0.0001681,2]
[395022889,1764345033684,-500.0,0.0001681,2]
[395022890,1764345033693,-500.0,0.0001681,2]
[395022891,1764345033702,-500.0,0.0001681,2]
[395022892,1764345033712,-500.0,0.0001681,2]
[395022893,1764345033722,-500.0,0.0001681,2]
[395022894,1764345033732,-500.0,0.0001681,2]
[395022895,1764345033741,-500.0,0.0001681,2]
[395022896,1764345033750,-500.0,0.0001681,2]
[395022897,1764345033760,-500.0,0.0001681,2]
[395022898,1764345033769,-500.0,0.0001681,2]
[395022899,1764345033780,-500.0,0.0001681,2]
[395022900,1764345033790,-500.0,0.0001681,2]
[395022901,1764345033799,-500.0,0.0001681,2]
[395022902,1764345033809,-500.0,0.0001681,2]
[395022903,1764345033818,-500.0,0.0001681,2]
[395022904,1764345033827,-500.0,0.0001681,2]
[395022905,1764345033837,-500.0,0.0001681,2]
[395022906,1764345033847,-500.0,0.0001681,2]
[395022907,1764345033857,-500.0,0.0001681,2]
[395022908,1764345033867,-250.0,0.0001681,2]
[395022909,1764345033877,-500.0,0.0001681,2]
[395022910,1764345033887,-500.0,0.0001681,2]
[395022911,1764345033896,-250.0,0.0001681,2]
[395022912,1764345033906,-500.0,0.0001681,2]
[395022913,1764345033916,-500.0,0.0001681,2]
[395022914,1764345033926,-250.0,0.0001681,2]
[395022915,1764345033936,-500.0,0.0001681,2]
[395022916,1764345033945,-250.0,0.0001681,2]
[395022917,1764345033955,-500.0,0.0001681,2]
[395022918,1764345033965,-250.0,0.0001681,2]
[395022919,1764345033974,-201.93286099,0.0001681,2]
[395022920,1764345033984,-250.0,0.0001681,2]
[395022921,1764345033994,-250.0,0.0001681,2]
[395022922,1764345034003,-250.0,0.0001681,2]
[395022923,1764345034013,-250.0,0.0001681,2]
[395022924,1764345034022,-250.0,0.0001681,2]
[395022925,1764345034032,-250.0,0.0001681,2]
[395022926,1764345034041,-250.0,0.0001681,2]
[395022927,1764345034051,-250.0,0.0001681,2]
[395022928,1764345034061,-151.0,0.0001681,2]
[395022929,1764345034070,-250.0,0.0001681,2]
[395022930,1764345034080,-500.0,0.0001681,2]
[395022931,1764345034089,-151.0,0.0001681,2]
[395022932,1764345034099,-250.0,0.0001681,2]
[395022933,1764345034108,-151.0,0.0001681,2]
[395022934,1764345034118,-250.0,0.0001681,2]
[395022935,1764345034127,-500.0,0.0001681,2]
[395022936,1764345034137,-151.0,0.0001681,2]
[395022937,1764345034146,-151.0,0.0001681,2]
[395022938,1764345034156,-250.0,0.0001681,2]
[395022939,1764345034165,-500.0,0.0001681,2]
[395022940,1764345034174,-250.0,0.0001681,2]
[395022941,1764345034184,-500.0,0.0001681,2]
[395022942,1764345034194,-151.0,0.0001681,2]
[395022943,1764345034205,-250.0,0.0001681,2]
[395022944,1764345034214,-500.0,0.0001681,2]
[395022945,1764345034223,-151.0,0.0001681,2]
[395022946,1764345034233,-200.0,0.0001681,2]
[395022947,1764345034242,-500.0,0.0001681,2]
[395022948,1764345034252,-250.0,0.0001681,2]
[395022949,1764345034261,-500.0,0.0001681,2]
[395022950,1764345034270,-500.0,0.0001681,2]
[395022951,1764345034280,-151.0,0.0001681,2]
[395022952,1764345034290,-250.0,0.0001681,2]
[395022953,1764345034299,-500.0,0.0001681,2]
[395022954,1764345034311,-500.0,0.0001681,2]
[395022955,1764345034322,-151.0,0.0001681,2]
[395022956,1764345034331,-500.0,0.0001681,2]
[395022957,1764345034340,-250.0,0.0001681,2]
[395022958,1764345034350,-500.0,0.0001681,2]
[395022959,1764345034360,-500.0,0.0001681,2]
[395022960,1764345034370,-151.0,0.0001681,2]
[395022961,1764345034379,-500.0,0.0001681,2]
[395022962,1764345034389,-500.0,0.0001681,2]
[395022963,1764345034400,-500.0,0.0001681,2]
[395022964,1764345034410,-250.0,0.0001681,2]
[395022965,1764345034419,-151.0,0.0001681,2]
[395022966,1764345034429,-500.0,0.0001681,2]
[395022967,1764345034439,-500.0,0.0001681,2]
[395022968,1764345034448,-151.0,0.0001681,2]
[395022969,1764345034457,-500.0,0.0001681,2]
[395022970,1764345034467,-250.0,0.0001681,2]
[395022971,1764345034477,-500.0,0.0001681,2]
[395022972,1764345034486,-500.0,0.0001681,2]
[395022973,1764345034496,-500.0,0.0001681,2]
[395022974,1764345034505,-500.0,0.0001681,2]
[395022975,1764345034515,-151.0,0.0001681,2]
[395022976,1764345034526,-500.0,0.0001681,2]
[395022977,1764345034537,-500.0,0.0001681,2]
[395022978,1764345034546,-500.0,0.0001681,2]
[395022979,1764345034556,-500.0,0.0001681,2]
[395022980,1764345034566,-500.0,0.0001681,2]
[395022981,1764345034575,-500.0,0.0001681,2]
[395022982,1764345034585,-506.31894944,0.0001681,2]
[395022983,1764345034594,-250.0,0.0001681,2]
[395022984,1764345034604,-500.0,0.0001681,2]
[395022985,1764345034614,-500.0,0.0001681,2]
[395022986,1764345034623,-250.0,0.0001681,2]
[395022987,1764345034632,-500.0,0.0001681,2]
[395022988,1764345034642,-500.0,0.0001681,2]
[395022989,1764345034652,-250.0,0.0001681,2]
[395022990,1764345034662,-19.21159377,0.0001681,2]
[395022991,1764345034676,-480.78840623,0.0001681,2]
[395022992,1764345034686,-500.0,0.0001681,2]
[395022993,1764345034696,-250.0,0.0001681,2]
[395022994,1764345034705,-500.0,0.0001681,2]
[395022995,1764345034714,-250.0,0.0001681,2]
[395022996,1764345034724,-250.0,0.0001681,2]
[395022997,1764345034734,-31.8377349,0.0001681,2]
[395022998,1764345034746,-218.1622651,0.0001681,2]
[395022999,1764345034755,-250.0,0.0001681,2]
[395023000,1764345034764,-250.0,0.0001681,2]
[395023001,1764345034774,-151.0,0.0001681,2]
[395023002,1764345034784,-151.0,0.0001681,2]
[395023003,1764345034793,-250.0,0.0001681,2]
[395023004,1764345034803,-151.0,0.0001681,2]
[395023005,1764345034813,-250.0,0.0001681,2]
[395023006,1764345034823,-151.0,0.0001681,2]
[395023007,1764345034832,-250.0,0.0001681,2]
[395023008,1764345034843,-151.0,0.0001681,2]
[395023009,1764345034853,-151.0,0.0001681,2]
[395023010,1764345034863,-151.0,0.0001681,2]
[395023011,1764345034872,-151.0,0.0001681,2]
[395023012,1764345034881,-151.0,0.0001681,2]
[395023013,1764345034891,-151.0,0.0001681,2]
[395023014,1764345034901,-200.0,0.0001681,2]
[395023015,1764345034912,-151.0,0.0001681,2]
[395023016,1764345034922,-151.0,0.0001681,2]
[395023017,1764345034932,-151.0,0.0001681,2]
[395023018,1764345034941,-480.0,0.0001681,2]
[395023019,1764345034952,-659.66,0.0001681,2]
[395023020,1764345034962,-168.0,0.0001681,2]
[395023021,1764345034973,-172.906,0.0001682,2]
[395023022,1764345034983,-285.769,0.0001682,2]
[395023023,1764345034993,-500.0,0.00016829,2]
[395023024,1764345035003,-587.47670195,0.00016829,2]
[395023025,1764345035013,-48527.65001035,0.0001683,2]
[395023026,1764345035023,-500.0,0.00016873,2]
[395023027,1764345035033,-164.97579147,0.00016873,2]
[395023028,1764345035043,-503.02436121,0.00016873,2]
[395023029,1764345035052,-502.4344474,0.00016873,2]
[395023030,1764345035062,-501.1174754,0.00016873,2]
[395023031,1764345035071,-503.4856971,0.00016873,2]
[395023032,1764345035082,-500.0,0.00016873,2]
[395023033,1764345035091,-290.88716802,0.00016873,2]
[395023034,1764345035101,-500.0,0.00016873,2]
[395023035,1764345035111,-151.0,0.00016887,2]
[395023036,1764345035121,-151.0,0.00016887,2]
[395023037,1764345035130,-151.0,0.00016887,2]
[395023038,1764345035140,-499.96770942,0.00016889,2]
[395023039,1764345035149,-31668.48337258,0.0001689,2]
[395023040,1764345035201,-1636.40549377,0.0001689,2]
[395023041,1764345035213,-1733.93141528,0.0001689,2]
[395023042,1764345035281,-4175.82019583,0.0001689,2]
[395023043,1764345035327,-1722.90736263,0.0001689,2]
[395023070,1764345038904,-437.75650471,0.00016873,2]
[395023072,1764345038914,-500.0,0.00016873,2]
[395023073,1764345038924,-349.97739659,0.00016889,2]
[395023075,1764345038934,-28112.55787371,0.0001689,2]
[395023078,1764345038947,-1888.38,0.0001689,2]
[395023083,1764345039410,-354.0347142,0.0001689,2]
[395023086,1764345040748,-332.57952245,0.0001689,2]
[395023087,1764345040759,-85833.20259667,0.0001689,2]
[395023088,1764345040770,-485.66176735,0.0001689,2]
[395023093,1764345041757,-7284.72587626,0.0001689,2]
[395023094,1764345041768,-5006.9291238,0.0001689,2]
[395023095,1764345041779,-589764.38068547,0.0001689,2]
[395023096,1764345041788,-408.37286099,0.0001689,2]
[395023097,1764345041798,-953.19611511,0.000169,2]
[395023098,1764345041807,-501.29612082,0.00016973,2]
[395023099,1764345041816,-503.66867124,0.00016973,2]
[395023100,1764345041825,-155.79435701,0.00016973,2]
[395023101,1764345041834,-500.0,0.00016973,2]
[395023102,1764345041843,-500.0,0.00016973,2]
[395023103,1764345041852,-500.0,0.00016973,2]
[395023104,1764345041860,-500.0,0.00016973,2]
[395023105,1764345041870,-500.0,0.00016973,2]
[395023106,1764345041879,-503.40492699,0.00016973,2]
[395023107,1764345041888,-211.70175649,0.00016973,2]
[395023108,1764345041897,-196.83392469,0.0001698,2]
[395023109,1764345041907,-150.0,0.00016986,2]
[395023110,1764345041916,-150.0,0.00016986,2]
[395023111,1764345041925,-232.97251994,0.00016986,2]
[395023112,1764345041935,-500.0,0.00016989,2]
[395023113,1764345041944,-1217.0,0.0001699,2]
[395023114,1764345041954,-22950.1960684,0.0001699,2]
[395023115,1764345041963,-35793.4539125,0.0001699,2]
[395023116,1764345041972,-168.8178741,0.0001699,2]
[395023117,1764345041981,-7933.130698,0.0001699,2]
[395023118,1764345041991,-212905.73557681,0.0001699,2]
[395023119,1764345042034,-73862.84694485,0.0001699,2]
[395023120,1764345042046,-707.12359549,0.0001699,2]
[395023121,1764345042057,-543.74,0.0001699,2]
[395023122,1764345042068,-364.77014755,0.0001699,2]
[395023123,1764345042113,-91615.23356955,0.0001699,2]
[395023124,1764345042124,-2291.63780174,0.0001699,2]
[395023125,1764345042201,-511.16080038,0.0001699,2]
[395023128,1764345045255,-453.0,0.0001699,2]
[395023131,1764345046112,-387.009975,0.0001699,2]
[395023132,1764345213021,183.99,0.00012789,2]
[395023137,1764345799334,164.93,0.00019178,30]
[395023139,1764345836313,151.8,0.00022,30]
[395023142,1764345905721,164.0,0.0002244,120]
[395023143,1764345907230,164.0,0.00023562,120]
[395023144,1764345909498,164.0,0.0002474,120]
[395023149,1764346146130,-500.0,0.00016999,13]
[395023150,1764346155071,-500.0,0.00016999,12]
[395023151,1764346163998,-500.0,0.00016999,11]
[395023167,1764346169798,-500.0,0.00016999,10]
[395023177,1764346189389,-500.0,0.0001642,6]
[395023178,1764346189432,-500.0,0.00016999,6]
[395023179,1764346189457,-500.0,0.00016999,7]
[395023180,1764346189484,-500.0,0.00016999,8]
[395023181,1764346189511,-500.0,0.00016999,9]
[395023182,1764346209230,-500.0,0.00016999,5]
[395023202,1764346231618,-150.0,0.00015288,2]
[395023205,1764346231628,-150.0,0.00015288,2]
[395023208,1764346231638,-150.0,0.00015288,2]
[395023211,1764346231647,-150.0,0.00015288,2]
[395023214,1764346231657,-150.0,0.00015288,2]
[395023216,1764346231666,-150.0,0.00015288,2]
[395023218,1764346231676,-24.27,0.00015288,2]
[395023220,1764346231688,-125.73,0.00015288,2]
[395023222,1764346231697,-150.0,0.00015288,2]
[395023224,1764346231707,-205.0,0.00015529,2]
[395023225,1764346231716,-300.0,0.00015529,2]
[395023227,1764346231727,-150.0,0.0001553,2]
[395023229,1764346231737,-150.0,0.0001553,2]
[395023231,1764346231747,-150.0,0.0001554,2]
[395023233,1764346231759,-1100.35,0.0001554,2]
[395023235,1764346231769,-150.0,0.00015773,2]
[395023237,1764346231778,-150.0,0.00015773,2]
[395023239,1764346231787,-150.0,0.00015854,2]
[395023241,1764346231796,-150.0,0.00015854,2]
[395023243,1764346231805,-150.0,0.00015854,2]
[395023245,1764346231815,-310.88453025,0.000159,2]
[395023247,1764346231823,-195.0,0.00015932,2]
[395023249,1764346231833,-200.0,0.00015932,2]
[395023250,1764346231842,-1000.0,0.00015965,2]
[395023252,1764346231851,-1808.08,0.00015971,2]
[395023254,1764346231860,-150.0,0.00016016,2]
[395023257,1764346231870,-150.0,0.00016016,2]
[395023260,1764346231879,-150.0,0.00016137,2]
[395023263,1764346231887,-150.0,0.00016258,2]
[395023265,1764346231897,-150.0,0.00016258,2]
[395023267,1764346231906,-150.0,0.0001642,2]
[395023269,1764346231916,-150.0,0.0001642,2]
[395023271,1764346231925,-150.0,0.0001642,2]
[395023273,1764346231934,-2043.80430009,0.00016438,2]
[395023275,1764346231945,-1897.20569991,0.00016438,2]
[395023277,1764346231954,-168.0,0.00016444,2]
[395023279,1764346231964,-150.0,0.00016501,2]
[395023281,1764346231972,-150.0,0.00016501,2]
[395023285,1764346231982,-168.0,0.00016565,2]
[395023288,1764346231991,-300.0,0.000166,2]
[395023290,1764346232000,-151.0,0.000166,2]
[395023294,1764346232010,-151.0,0.000166,2]
[395023298,1764346232019,-267.46074303,0.000166,2]
[395023301,1764346232028,-265.44491731,0.0001661,2]
[395023304,1764346232039,-286.6042727,0.0001661,2]
[395023307,1764346232050,-400.0,0.0001661,2]
[395023310,1764346232060,-3086.38560984,0.0001661,2]
[395023322,1764346232134,-646.02027247,0.0001661,2]
[395023324,1764346232145,-4846.93692768,0.0001661,2]
[395023326,1764346232155,-1000.0,0.0001661,2]
[395023327,1764346232164,-1000.0,0.0001661,2]
[395023328,1764346232173,-1113.8806,0.0001661,2]
[395023330,1764346232183,-235.2291,0.0001661,2]
[395023332,1764346232192,-599.42304173,0.00016673,2]
[395023334,1764346232201,-506.45525568,0.00016673,2]
[395023336,1764346232211,-151.0,0.000167,2]
[395023338,1764346232220,-500.0,0.000167,2]
[395023340,1764346232229,-201.93286099,0.000167,2]
[395023342,1764346232238,-151.0,0.000167,2]
[395023344,1764346232247,-500.0,0.000167,2]
[395023346,1764346232256,-151.0,0.000167,2]
[395023348,1764346232266,-500.0,0.000167,2]
[395023350,1764346232275,-151.0,0.000167,2]
[395023352,1764346232284,-500.0,0.000167,2]
[395023354,1764346232293,-500.0,0.000167,2]
[395023356,1764346232302,-151.0,0.000167,2]
[395023358,1764346232311,-500.0,0.000167,2]
[395023360,1764346232320,-406.88358199,0.000167,2]
[395023362,1764346232331,-93.11641801,0.000167,2]
[395023364,1764346232340,-151.0,0.000167,2]
[395023366,1764346232350,-151.0,0.000167,2]
[395023368,1764346232359,-138.39024771,0.000167,2]
[395023377,1764346232430,-361.60975229,0.000167,2]
[395023379,1764346232439,-426.52026205,0.000167,2]
[395023381,1764346232451,-73.47973795,0.000167,2]
[395023383,1764346232460,-151.0,0.000167,2]
[395023385,1764346232469,-151.0,0.000167,2]
[395023387,1764346232478,-30.47816089,0.000167,2]
[395023389,1764346232489,-359.90179686,0.000167,2]
[395023507,1764346238537,-109.62004225,0.000167,2]
[395023508,1764346238547,-151.0,0.000167,2]
[395023509,1764346238557,-151.0,0.000167,2]
[395023510,1764346238566,-500.0,0.000167,2]
[395023511,1764346238576,-500.0,0.000167,2]
[395023512,1764346238585,-500.0,0.000167,2]
[395023513,1764346238596,-500.0,0.000167,2]
[395023514,1764346238605,-151.0,0.000167,2]
[395023515,1764346238615,-500.0,0.000167,2]
[395023516,1764346238625,-151.0,0.000167,2]
[395023517,1764346238634,-500.0,0.000167,2]
[395023518,1764346238644,-500.0,0.000167,2]
[395023519,1764346238655,-500.0,0.000167,2]
[395023520,1764346238664,-151.0,0.000167,2]
[395023521,1764346238675,-500.0,0.000167,2]
[395023522,1764346238687,-500.0,0.000167,2]
[395023523,1764346238697,-151.0,0.000167,2]
[395023524,1764346238706,-151.0,0.000167,2]
[395023525,1764346238716,-500.0,0.000167,2]
[395023526,1764346238726,-500.0,0.000167,2]
[395023527,1764346238736,-500.0,0.000167,2]
[395023528,1764346238745,-151.0,0.000167,2]
[395023529,1764346238756,-500.0,0.000167,2]
[395023530,1764346238765,-500.0,0.000167,2]
[395023531,1764346238775,-500.0,0.000167,2]
[395023532,1764346238784,-151.0,0.000167,2]
[395023533,1764346238794,-500.0,0.000167,2]
[395023534,1764346238804,-500.0,0.000167,2]
[395023535,1764346238814,-151.0,0.000167,2]
[395023536,1764346238824,-500.0,0.000167,2]
[395023537,1764346238834,-500.0,0.000167,2]
[395023538,1764346238844,-151.0,0.000167,2]
[395023539,1764346238854,-500.0,0.000167,2]
[395023540,1764346238863,-500.0,0.000167,2]
[395023541,1764346238873,-500.0,0.000167,2]
[395023542,1764346238883,-151.0,0.000167,2]
[395023543,1764346238893,-500.0,0.000167,2]
[395023544,1764346238903,-151.0,0.000167,2]
[395023545,1764346238912,-500.0,0.000167,2]
[395023546,1764346238922,-500.0,0.000167,2]
[395023547,1764346238932,-500.0,0.000167,2]
[395023548,1764346238942,-500.0,0.000167,2]
[395023549,1764346238951,-250.0,0.000167,2]
[395023550,1764346238960,-553.64373807,0.000167,2]
[395023551,1764346238970,-500.0,0.000167,2]
[395023552,1764346238979,-500.0,0.000167,2]
[395023553,1764346238988,-250.0,0.000167,2]
[395023554,1764346238998,-500.0,0.000167,2]
[395023555,1764346239007,-500.0,0.000167,2]
[395023556,1764346239017,-250.0,0.000167,2]
[395023557,1764346239026,-500.0,0.000167,2]
[395023558,1764346239035,-250.0,0.000167,2]
[395023559,1764346239045,-250.0,0.000167,2]
[395023560,1764346239055,-500.0,0.000167,2]
[395023561,1764346239064,-250.0,0.000167,2]
[395023562,1764346239074,-151.0,0.000167,2]
[395023563,1764346239084,-500.0,0.000167,2]
[395023564,1764346239095,-250.0,0.000167,2]
[395023565,1764346239105,-151.0,0.000167,2]
[395023566,1764346239116,-500.0,0.000167,2]
[395023567,1764346239126,-250.0,0.000167,2]
[395023568,1764346239136,-500.0,0.000167,2]
[395023569,1764346239146,-250.0,0.000167,2]
[395023570,1764346239156,-500.0,0.000167,2]
[395023571,1764346239166,-250.0,0.000167,2]
[395023572,1764346239177,-250.0,0.000167,2]
[395023573,1764346239187,-160.0,0.000167,2]
[395023574,1764346239197,-250.0,0.000167,2]
[395023575,1764346239207,-183.03458235,0.000167,2]
[395023576,1764346239216,-500.0,0.000167,2]
[395023577,1764346239226,-500.0,0.000167,2]
[395023578,1764346239235,-500.0,0.000167,2]
[395023579,1764346239245,-500.0,0.000167,2]
[395023580,1764346239254,-500.0,0.000167,2]
[395023581,1764346239263,-151.0,0.000167,2]
[395023582,1764346239274,-200.0,0.000167,2]
[395023583,1764346239283,-500.0,0.000167,2]
[395023584,1764346239293,-500.0,0.000167,2]
[395023585,1764346239303,-500.0,0.000167,2]
[395023586,1764346239312,-500.0,0.000167,2]
[395023587,1764346239322,-500.0,0.000167,2]
[395023588,1764346239332,-61.31910518,0.000167,2]
[395023589,1764346239345,-257.14460464,0.000167,2]
[395023590,1764346239357,-181.53629018,0.000167,2]
[395023591,1764346239366,-500.0,0.000167,2]
[395023592,1764346239376,-87.01370982,0.000167,2]
[395023593,1764346239389,-412.98629018,0.000167,2]
[395023595,1764346239399,-200.0,0.000167,2]
[395023596,1764346239409,-46.70822346,0.000167,2]
[395023612,1764346244395,-453.29177654,0.000167,2]
[395023613,1764346244404,-500.0,0.000167,2]
[395023614,1764346244414,-500.0,0.000167,2]
[395023615,1764346244424,-500.0,0.000167,2]
[395023616,1764346244434,-500.0,0.000167,2]
[395023617,1764346244444,-500.0,0.000167,2]
[395023618,1764346244454,-318.72500264,0.000167,2]
[395023627,1764346245981,-181.27499736,0.000167,2]
[395023628,1764346245991,-500.0,0.000167,2]
[395023629,1764346246001,-500.0,0.000167,2]
[395023630,1764346246011,-500.0,0.000167,2]
[395023631,1764346246021,-500.0,0.000167,2]
[395023632,1764346246030,-500.0,0.000167,2]
[395023633,1764346246040,-250.0,0.000167,2]
[395023634,1764346246050,-500.0,0.000167,2]
[395023635,1764346246059,-500.0,0.000167,2]
[395023636,1764346246069,-250.0,0.000167,2]
[395023637,1764346246079,-500.0,0.000167,2]
[395023638,1764346246089,-500.0,0.000167,2]
[395023639,1764346246099,-500.0,0.000167,2]
[395023640,1764346246108,-250.0,0.000167,2]
[395023641,1764346246118,-250.0,0.000167,2]
[395023642,1764346246128,-500.0,0.000167,2]
[395023643,1764346246138,-250.0,0.000167,2]
[395023644,1764346246148,-500.0,0.000167,2]
[395023645,1764346246157,-250.0,0.000167,2]
[395023647,1764346246167,-500.0,0.000167,2]